[Event "Early-Titled-Tuesday-Blitz-May-28-2024"]
[Site "Chess.com"]
[Date "2024.05.28"]
[Round "4"]
[White "ViktoriyaTarasova"]
[Black "Renatoforf"]
[Result "1-0"]
[WhiteElo "2367"]
[BlackElo "2097"]
[TimeControl "180+1"]
[EndTime "8:38:45 PDT"]
[Termination "ViktoriyaTarasova won by resignation"]

1. d4 {[%clk 0:03:00.9]} 1... Nf6 {[%clk 0:02:58]} 2. c4 {[%clk 0:03:00.1]} 2...
e6 {[%clk 0:02:57.6]} 3. Nc3 {[%clk 0:03:00]} 3... Bb4 {[%clk 0:02:56.9]} 4. e3
{[%clk 0:02:59.8]} 4... c5 {[%clk 0:02:56]} 5. Ne2 {[%clk 0:02:57.8]} 5... d6
{[%clk 0:02:54.1]} 6. a3 {[%clk 0:02:55.9]} 6... Ba5 {[%clk 0:02:54.1]} 7. Rb1
{[%clk 0:02:53]} 7... Nc6 {[%clk 0:02:52.7]} 8. d5 {[%clk 0:02:50.9]} 8... Bxc3+
{[%clk 0:02:48.3]} 9. Nxc3 {[%clk 0:02:49.9]} 9... Ne7 {[%clk 0:02:43.9]} 10. e4
{[%clk 0:02:49.2]} 10... e5 {[%clk 0:02:42.9]} 11. Be2 {[%clk 0:02:49.2]} 11...
Ng6 {[%clk 0:02:42]} 12. O-O {[%clk 0:02:49.3]} 12... O-O {[%clk 0:02:40.7]} 13.
Be3 {[%clk 0:02:45.6]} 13... h6 {[%clk 0:02:37.7]} 14. h3 {[%clk 0:02:44]} 14...
a5 {[%clk 0:02:30.7]} 15. Qd2 {[%clk 0:02:44.1]} 15... a4 {[%clk 0:02:26.5]} 16.
Kh2 {[%clk 0:02:41.9]} 16... Bd7 {[%clk 0:02:25.6]} 17. Bd3 {[%clk 0:02:28.4]}
17... Nh5 {[%clk 0:02:23.7]} 18. g3 {[%clk 0:02:24.5]} 18... f5 {[%clk
0:02:19.2]} 19. exf5 {[%clk 0:02:18.2]} 19... Bxf5 {[%clk 0:02:17]} 20. Bxf5
{[%clk 0:02:18]} 20... Rxf5 {[%clk 0:02:15.7]} 21. Qd3 {[%clk 0:01:18.5]} 21...
Rf6 {[%clk 0:02:08.1]} 22. Ne4 {[%clk 0:01:17.1]} 22... Rf8 {[%clk 0:02:05.8]}
23. Nxc5 {[%clk 0:01:00.2]} 23... Ngf4 {[%clk 0:02:00.8]} 24. Bxf4 {[%clk
0:00:53.5]} 24... Nxf4 {[%clk 0:01:57.8]} 25. gxf4 {[%clk 0:00:48.4]} 25... dxc5
{[%clk 0:01:57]} 26. fxe5 {[%clk 0:00:44.8]} 26... Qh4 {[%clk 0:01:55.6]} 27.
Qg3 {[%clk 0:00:17]} 27... Qxc4 {[%clk 0:01:49.1]} 28. Rg1 {[%clk 0:00:17]}
28... Rf7 {[%clk 0:01:46.6]} 29. Rbd1 {[%clk 0:00:17]} 29... Raf8 {[%clk
0:01:43.3]} 30. Rg2 {[%clk 0:00:15]} 30... g5 {[%clk 0:01:41.3]} 31. e6 {[%clk
0:00:08.6]} 31... Rf4 {[%clk 0:01:38.4]} 32. e7 {[%clk 0:00:07.8]} 32... Re8
{[%clk 0:01:37.1]} 33. d6 {[%clk 0:00:08.1]} 33... Qb3 {[%clk 0:01:29.5]} 34.
Qxb3+ {[%clk 0:00:04.9]} 34... axb3 {[%clk 0:01:28.5]} 35. d7 {[%clk 0:00:05.5]}
35... Kf7 {[%clk 0:01:26.5]} 36. dxe8=Q+ {[%clk 0:00:05.3]} 36... Kxe8 {[%clk
0:01:26.2]} 37. Re1 {[%clk 0:00:05.6]} 37... Rc4 {[%clk 0:01:24.5]} 38. Kg1
{[%clk 0:00:06]} 38... Rc2 {[%clk 0:01:24.3]} 39. f3 {[%clk 0:00:06.5]} 39... c4
{[%clk 0:01:23.9]} 40. Rxc2 {[%clk 0:00:06.4]} 40... bxc2 {[%clk 0:01:23.1]} 41.
Rc1 {[%clk 0:00:07.1]} 41... Kxe7 {[%clk 0:01:22.3]} 42. Rxc2 {[%clk 0:00:07.7]}
42... Ke6 {[%clk 0:01:23]} 43. Rxc4 {[%clk 0:00:08]} 43... Kd5 {[%clk
0:01:23.1]} 44. Rc7 {[%clk 0:00:08.2]} 44... Kd4 {[%clk 0:01:23.6]} 45. Rxb7
{[%clk 0:00:08.4]} 45... Ke3 {[%clk 0:01:24.2]} 46. a4 {[%clk 0:00:08.5]} 46...
Kxf3 {[%clk 0:01:24.7]} 47. a5 {[%clk 0:00:09.2]} 1-0

[Event "Early-Titled-Tuesday-Blitz-May-28-2024"]
[Site "Chess.com"]
[Date "2024.05.28"]
[Round "4"]
[White "LeoLV10"]
[Black "francyIM"]
[Result "0-1"]
[WhiteElo "2571"]
[BlackElo "2811"]
[TimeControl "180+1"]
[EndTime "8:38:49 PDT"]
[Termination "francyIM won by resignation"]

1. e4 {[%clk 0:03:00.9]} 1... Nc6 {[%clk 0:02:58.9]} 2. d4 {[%clk 0:03:00.6]}
2... d5 {[%clk 0:02:57.9]} 3. e5 {[%clk 0:03:01.2]} 3... Bf5 {[%clk 0:02:57.6]}
4. c3 {[%clk 0:03:01]} 4... e6 {[%clk 0:02:57.8]} 5. Bb5 {[%clk 0:03:00.1]} 5...
Qd7 {[%clk 0:02:57.3]} 6. Ne2 {[%clk 0:02:57.9]} 6... f6 {[%clk 0:02:57]} 7. f4
{[%clk 0:02:56.3]} 7... Nge7 {[%clk 0:02:56.6]} 8. O-O {[%clk 0:02:55.3]} 8...
h5 {[%clk 0:02:55.5]} 9. h3 {[%clk 0:02:52.3]} 9... h4 {[%clk 0:02:51.8]} 10.
Be3 {[%clk 0:02:48.5]} 10... a6 {[%clk 0:02:51.6]} 11. Ba4 {[%clk 0:02:48.3]}
11... Bg6 {[%clk 0:02:49.8]} 12. Nd2 {[%clk 0:02:46.9]} 12... Nf5 {[%clk
0:02:45.9]} 13. Bf2 {[%clk 0:02:46.7]} 13... Bh5 {[%clk 0:02:46.2]} 14. Qe1
{[%clk 0:02:38.2]} 14... Be7 {[%clk 0:02:45.8]} 15. Kh2 {[%clk 0:02:32.7]} 15...
O-O-O {[%clk 0:02:42.3]} 16. b4 {[%clk 0:02:31.5]} 16... g5 {[%clk 0:02:33.7]}
17. Bc2 {[%clk 0:02:15.6]} 17... g4 {[%clk 0:02:27.5]} 18. Bg1 {[%clk 0:01:57]}
18... Rdg8 {[%clk 0:02:25.6]} 19. a4 {[%clk 0:01:45.4]} 19... gxh3 {[%clk
0:02:22]} 20. gxh3 {[%clk 0:01:46.3]} 20... Bxe2 {[%clk 0:02:19.5]} 21. Qxe2
{[%clk 0:01:44.9]} 21... Ng3 {[%clk 0:02:20.3]} 22. Qf3 {[%clk 0:01:41.8]} 22...
fxe5 {[%clk 0:02:18.9]} 23. dxe5 {[%clk 0:01:40.9]} 23... Nxf1+ {[%clk
0:02:17.4]} 24. Nxf1 {[%clk 0:01:40.7]} 24... Qe8 {[%clk 0:02:15.5]} 25. b5
{[%clk 0:01:39]} 25... Nb8 {[%clk 0:02:14.6]} 26. Bd3 {[%clk 0:01:36.9]} 26...
Qf7 {[%clk 0:02:13.4]} 27. bxa6 {[%clk 0:01:34.3]} 27... Nxa6 {[%clk 0:02:11.7]}
28. Bxa6 {[%clk 0:01:31.6]} 28... bxa6 {[%clk 0:02:12.6]} 29. c4 {[%clk
0:01:27.7]} 29... Rf8 {[%clk 0:01:50.8]} 30. Be3 {[%clk 0:01:22.6]} 30... Bg5
{[%clk 0:01:50.2]} 31. f5 {[%clk 0:00:42.5]} 31... Qxf5 {[%clk 0:01:41.8]} 32.
Qxf5 {[%clk 0:00:37]} 32... Rxf5 {[%clk 0:01:42.7]} 33. Bxg5 {[%clk 0:00:35.8]}
33... Rxg5 {[%clk 0:01:30]} 34. cxd5 {[%clk 0:00:35.2]} 34... exd5 {[%clk
0:01:29.7]} 35. Re1 {[%clk 0:00:34.6]} 35... Re8 {[%clk 0:01:29.4]} 36. e6
{[%clk 0:00:34.6]} 36... Rg6 {[%clk 0:01:29.1]} 37. Re5 {[%clk 0:00:34.2]} 37...
c6 {[%clk 0:01:27.5]} 38. e7 {[%clk 0:00:31.9]} 38... Kd7 {[%clk 0:01:26.5]} 39.
Rh5 {[%clk 0:00:28.3]} 39... Rxe7 {[%clk 0:01:25.9]} 40. Rxh4 {[%clk 0:00:28.5]}
40... Re2+ {[%clk 0:01:26.2]} 41. Kh1 {[%clk 0:00:29.1]} 41... Rf2 {[%clk
0:01:24.3]} 42. Nh2 {[%clk 0:00:23.4]} 42... Kd6 {[%clk 0:01:21.4]} 43. Ng4
{[%clk 0:00:20.5]} 43... Rf4 {[%clk 0:01:21]} 44. Rh8 {[%clk 0:00:17.7]} 44...
Rxa4 {[%clk 0:01:18.3]} 45. Rd8+ {[%clk 0:00:16.8]} 45... Kc7 {[%clk 0:01:18.5]}
46. Rf8 {[%clk 0:00:16.6]} 46... Raxg4 {[%clk 0:01:18.6]} 47. hxg4 {[%clk
0:00:17.5]} 47... Rxg4 {[%clk 0:01:19.5]} 48. Kh2 {[%clk 0:00:18]} 48... a5
{[%clk 0:01:19]} 49. Rf7+ {[%clk 0:00:18.9]} 0-1

[Event "Early-Titled-Tuesday-Blitz-May-28-2024"]
[Site "Chess.com"]
[Date "2024.05.28"]
[Round "4"]
[White "KingCrusher275"]
[Black "Nitzan_Steinberg"]
[Result "0-1"]
[WhiteElo "2598"]
[BlackElo "2898"]
[TimeControl "180+1"]
[EndTime "8:38:52 PDT"]
[Termination "Nitzan_Steinberg won by resignation"]

1. d4 {[%clk 0:03:00.9]} 1... d5 {[%clk 0:02:59.3]} 2. c4 {[%clk 0:03:01.1]}
2... e6 {[%clk 0:02:59.9]} 3. Nc3 {[%clk 0:03:01.3]} 3... c5 {[%clk 0:03:00.5]}
4. cxd5 {[%clk 0:03:01]} 4... cxd4 {[%clk 0:03:01]} 5. Qxd4 {[%clk 0:02:59.9]}
5... Nc6 {[%clk 0:03:01.4]} 6. Qd1 {[%clk 0:02:58.8]} 6... exd5 {[%clk
0:03:01.5]} 7. Nxd5 {[%clk 0:02:48]} 7... Be6 {[%clk 0:02:58.7]} 8. Nc3 {[%clk
0:02:41.4]} 8... Nf6 {[%clk 0:02:42]} 9. Nf3 {[%clk 0:02:33]} 9... Qxd1+ {[%clk
0:02:36.8]} 10. Nxd1 {[%clk 0:02:31.7]} 10... Nb4 {[%clk 0:02:36.8]} 11. Ne3
{[%clk 0:02:13.8]} 11... Nxa2 {[%clk 0:02:37]} 12. Bd2 {[%clk 0:02:10.2]} 12...
Bc5 {[%clk 0:02:23.2]} 13. g3 {[%clk 0:01:54.1]} 13... Ne4 {[%clk 0:02:18.4]}
14. Bg2 {[%clk 0:01:46.2]} 14... Rd8 {[%clk 0:02:13.5]} 15. Bc1 {[%clk
0:01:08.5]} 15... Bb4+ {[%clk 0:02:03.1]} 16. Kf1 {[%clk 0:01:02.9]} 16... Rc8
{[%clk 0:01:54.5]} 17. Nd4 {[%clk 0:00:43.6]} 17... Rxc1+ {[%clk 0:01:50.8]} 18.
Rxc1 {[%clk 0:00:38]} 18... Nd2+ {[%clk 0:01:51.7]} 19. Kg1 {[%clk 0:00:35.1]}
19... Nxc1 {[%clk 0:01:51.8]} 20. Bxb7 {[%clk 0:00:35.8]} 20... O-O {[%clk
0:01:30.3]} 21. Kg2 {[%clk 0:00:35.9]} 21... Ncb3 {[%clk 0:01:30.3]} 22. Nxe6
{[%clk 0:00:31.4]} 22... fxe6 {[%clk 0:01:30.5]} 23. Rd1 {[%clk 0:00:28.4]}
23... a5 {[%clk 0:01:27.1]} 24. Bc6 {[%clk 0:00:21.2]} 24... Nd4 {[%clk
0:01:13.3]} 25. Bd7 {[%clk 0:00:20.5]} 25... Rd8 {[%clk 0:01:04.8]} 26. Ba4
{[%clk 0:00:16.8]} 26... Nxe2 {[%clk 0:01:03.7]} 27. Bb3 {[%clk 0:00:17.2]}
27... Kf7 {[%clk 0:00:59.4]} 28. Nc2 {[%clk 0:00:14.9]} 28... Nd4 {[%clk
0:00:48.2]} 29. Nxb4 {[%clk 0:00:08.5]} 29... N4xb3 {[%clk 0:00:47.6]} 30. Nc6
{[%clk 0:00:08.7]} 30... Rd5 {[%clk 0:00:46.3]} 31. f4 {[%clk 0:00:08.8]} 31...
Nc4 {[%clk 0:00:40]} 32. Ne5+ {[%clk 0:00:09.7]} 32... Nxe5 {[%clk 0:00:39.6]}
0-1

[Event "Early-Titled-Tuesday-Blitz-May-28-2024"]
[Site "Chess.com"]
[Date "2024.05.28"]
[Round "4"]
[White "AldokhinIvan"]
[Black "AnishOnYoutube"]
[Result "0-1"]
[WhiteElo "2610"]
[BlackElo "3038"]
[TimeControl "180+1"]
[EndTime "8:38:53 PDT"]
[Termination "AnishOnYoutube won on time"]

1. e4 {[%clk 0:03:00.9]} 1... c5 {[%clk 0:03:00.1]} 2. Nf3 {[%clk 0:03:00.9]}
2... d6 {[%clk 0:03:00.6]} 3. d4 {[%clk 0:03:01.3]} 3... cxd4 {[%clk 0:03:01.1]}
4. Nxd4 {[%clk 0:03:01.9]} 4... Nf6 {[%clk 0:03:01.5]} 5. Nc3 {[%clk 0:03:01.9]}
5... a6 {[%clk 0:03:02.1]} 6. Bc4 {[%clk 0:03:02]} 6... e6 {[%clk 0:03:02.1]} 7.
Bb3 {[%clk 0:03:02]} 7... b5 {[%clk 0:02:53.4]} 8. O-O {[%clk 0:02:55.4]} 8...
Be7 {[%clk 0:02:46.7]} 9. Qf3 {[%clk 0:02:42]} 9... Qc7 {[%clk 0:02:40.2]} 10.
Re1 {[%clk 0:02:19.7]} 10... O-O {[%clk 0:02:28]} 11. Qg3 {[%clk 0:02:18.8]}
11... Kh8 {[%clk 0:02:10]} 12. Bg5 {[%clk 0:02:15.1]} 12... b4 {[%clk
0:02:06.2]} 13. Na4 {[%clk 0:02:04.6]} 13... Nc6 {[%clk 0:02:04.8]} 14. Rad1
{[%clk 0:01:41.1]} 14... Bd7 {[%clk 0:02:00.5]} 15. Qh4 {[%clk 0:00:43.1]} 15...
Ne5 {[%clk 0:01:42.7]} 16. f4 {[%clk 0:00:25.8]} 16... Ng6 {[%clk 0:01:11.8]}
17. Qf2 {[%clk 0:00:17.8]} 17... Ng4 {[%clk 0:00:52.3]} 18. Qg3 {[%clk
0:00:10.8]} 18... Bxg5 {[%clk 0:00:52.2]} 19. fxg5 {[%clk 0:00:08.9]} 19... N4e5
{[%clk 0:00:52.9]} 20. h4 {[%clk 0:00:06.8]} 20... Qa5 {[%clk 0:00:51.6]} 21. h5
{[%clk 0:00:06.7]} 21... Ne7 {[%clk 0:00:51.7]} 22. h6 {[%clk 0:00:06.4]} 22...
Bxa4 {[%clk 0:00:49.1]} 23. Ne2 {[%clk 0:00:05.2]} 23... Bxb3 {[%clk 0:00:47.9]}
24. axb3 {[%clk 0:00:06.1]} 24... Qc5+ {[%clk 0:00:47.8]} 25. Kh1 {[%clk
0:00:05.2]} 25... N5g6 {[%clk 0:00:44.3]} 26. Rxd6 {[%clk 0:00:03.9]} 26... Qe5
{[%clk 0:00:40.3]} 0-1

[Event "Early-Titled-Tuesday-Blitz-May-28-2024"]
[Site "Chess.com"]
[Date "2024.05.28"]
[Round "4"]
[White "KnightDuta"]
[Black "Engima32"]
[Result "1-0"]
[WhiteElo "2723"]
[BlackElo "2501"]
[TimeControl "180+1"]
[EndTime "8:38:56 PDT"]
[Termination "KnightDuta won by checkmate"]

1. e4 {[%clk 0:03:00.9]} 1... c5 {[%clk 0:02:59.7]} 2. Nf3 {[%clk 0:03:01]} 2...
d6 {[%clk 0:02:59.6]} 3. d4 {[%clk 0:03:01.4]} 3... cxd4 {[%clk 0:03:00]} 4.
Nxd4 {[%clk 0:03:02.2]} 4... Nf6 {[%clk 0:03:00.5]} 5. Nc3 {[%clk 0:03:02.7]}
5... a6 {[%clk 0:03:00.9]} 6. f3 {[%clk 0:03:01.7]} 6... e5 {[%clk 0:02:58.2]}
7. Nb3 {[%clk 0:03:01.6]} 7... Be6 {[%clk 0:02:56.8]} 8. Be3 {[%clk 0:03:02]}
8... Nbd7 {[%clk 0:02:57.2]} 9. Nd5 {[%clk 0:02:59.8]} 9... Bxd5 {[%clk
0:02:54.3]} 10. exd5 {[%clk 0:03:00.7]} 10... b5 {[%clk 0:02:54.4]} 11. a4
{[%clk 0:02:58.3]} 11... b4 {[%clk 0:02:38.5]} 12. a5 {[%clk 0:02:52.5]} 12...
Be7 {[%clk 0:02:35.4]} 13. Ra4 {[%clk 0:02:51]} 13... Rb8 {[%clk 0:02:35.3]} 14.
Bxa6 {[%clk 0:02:44.1]} 14... Qc7 {[%clk 0:02:35.4]} 15. O-O {[%clk 0:02:38.6]}
15... O-O {[%clk 0:02:33.7]} 16. Qd2 {[%clk 0:02:22.7]} 16... Nc5 {[%clk
0:02:25.6]} 17. Nxc5 {[%clk 0:02:20.1]} 17... dxc5 {[%clk 0:02:26.1]} 18. Bc4
{[%clk 0:02:20.7]} 18... Ne8 {[%clk 0:02:20.6]} 19. a6 {[%clk 0:02:18.8]} 19...
Nd6 {[%clk 0:02:20.5]} 20. Qe2 {[%clk 0:02:16.8]} 20... Rb6 {[%clk 0:02:11.6]}
21. Rfa1 {[%clk 0:02:14.4]} 21... Ra8 {[%clk 0:02:11.1]} 22. Ra5 {[%clk
0:02:13.9]} 22... Nf5 {[%clk 0:01:53.6]} 23. Bf2 {[%clk 0:02:10.1]} 23... Nd4
{[%clk 0:01:44.3]} 24. Qd1 {[%clk 0:01:58.8]} 24... Bd6 {[%clk 0:01:08.7]} 25.
g3 {[%clk 0:01:43.8]} 25... f5 {[%clk 0:00:51.7]} 26. c3 {[%clk 0:01:42.2]}
26... bxc3 {[%clk 0:00:49.5]} 27. bxc3 {[%clk 0:01:43.1]} 27... g6 {[%clk
0:00:22.3]} 28. Kg2 {[%clk 0:01:32.2]} 28... Rb2 {[%clk 0:00:21.3]} 29. R5a2
{[%clk 0:01:19.7]} 29... Qb6 {[%clk 0:00:17.8]} 30. cxd4 {[%clk 0:01:18.1]}
30... cxd4 {[%clk 0:00:17.4]} 31. Rxb2 {[%clk 0:01:16.6]} 31... Qxb2 {[%clk
0:00:18.3]} 32. Ra2 {[%clk 0:01:17.2]} 32... Qc3 {[%clk 0:00:17.8]} 33. Qb3
{[%clk 0:01:15.7]} 33... Qxb3 {[%clk 0:00:16.1]} 34. Bxb3 {[%clk 0:01:16.6]}
34... Kf8 {[%clk 0:00:15.6]} 35. Bc4 {[%clk 0:01:12.8]} 35... Ke7 {[%clk
0:00:15.5]} 36. Bb5 {[%clk 0:01:13.5]} 36... Kd8 {[%clk 0:00:15.6]} 37. Bc6
{[%clk 0:01:14.1]} 37... Ra7 {[%clk 0:00:14.9]} 38. Be1 {[%clk 0:01:12.1]} 38...
Bc5 {[%clk 0:00:14.6]} 39. Ba5+ {[%clk 0:01:10.2]} 39... Ke7 {[%clk 0:00:14.6]}
40. Bb7 {[%clk 0:01:09.9]} 40... Kd6 {[%clk 0:00:13.9]} 41. Kf1 {[%clk
0:01:09.2]} 41... e4 {[%clk 0:00:14.4]} 42. fxe4 {[%clk 0:01:09]} 42... fxe4
{[%clk 0:00:15.3]} 43. Rf2 {[%clk 0:01:04.8]} 43... d3 {[%clk 0:00:14.2]} 44.
Rf7 {[%clk 0:01:05.4]} 44... e3 {[%clk 0:00:13.6]} 45. Bc7# {[%clk 0:01:05.5]}
1-0

[Event "Early-Titled-Tuesday-Blitz-May-28-2024"]
[Site "Chess.com"]
[Date "2024.05.28"]
[Round "4"]
[White "1stSecond"]
[Black "RuperezA"]
[Result "1-0"]
[WhiteElo "2918"]
[BlackElo "2683"]
[TimeControl "180+1"]
[EndTime "8:39:01 PDT"]
[Termination "1stSecond won by resignation"]

1. d4 {[%clk 0:03:00.9]} 1... e6 {[%clk 0:03:00.9]} 2. Nf3 {[%clk 0:03:00.4]}
2... d5 {[%clk 0:03:01.4]} 3. c4 {[%clk 0:03:00.3]} 3... Nf6 {[%clk 0:03:01.9]}
4. Nc3 {[%clk 0:03:00.1]} 4... Be7 {[%clk 0:03:02.2]} 5. g3 {[%clk 0:03:00.3]}
5... O-O {[%clk 0:03:02.1]} 6. Bg2 {[%clk 0:03:00.9]} 6... dxc4 {[%clk
0:03:00.4]} 7. Ne5 {[%clk 0:03:01]} 7... c5 {[%clk 0:02:56.6]} 8. dxc5 {[%clk
0:03:00.4]} 8... Qxd1+ {[%clk 0:02:55]} 9. Nxd1 {[%clk 0:03:01.3]} 9... Bxc5
{[%clk 0:02:54.8]} 10. Bd2 {[%clk 0:02:58.3]} 10... Rd8 {[%clk 0:02:40.9]} 11.
Rc1 {[%clk 0:02:55.6]} 11... Nd5 {[%clk 0:02:14]} 12. Rxc4 {[%clk 0:02:27.1]}
12... Bd6 {[%clk 0:02:06.6]} 13. Nd3 {[%clk 0:02:12.7]} 13... Nc6 {[%clk
0:02:05]} 14. Ne3 {[%clk 0:02:07.6]} 14... Nb6 {[%clk 0:01:59.1]} 15. Rc1 {[%clk
0:02:04.4]} 15... Bd7 {[%clk 0:01:59.6]} 16. f4 {[%clk 0:01:35.9]} 16... Rab8
{[%clk 0:01:29.3]} 17. Kf2 {[%clk 0:01:34.9]} 17... e5 {[%clk 0:01:29.5]} 18.
Rhg1 {[%clk 0:01:02.1]} 18... exf4 {[%clk 0:00:59.6]} 19. gxf4 {[%clk
0:01:02.2]} 19... Rbc8 {[%clk 0:00:59.7]} 20. Bc3 {[%clk 0:00:59.7]} 20... Bf8
{[%clk 0:00:53.4]} 21. Be4 {[%clk 0:00:47]} 21... Na4 {[%clk 0:00:48.9]} 22. Bf6
{[%clk 0:00:43]} 22... Re8 {[%clk 0:00:45.3]} 23. Bd5 {[%clk 0:00:35.5]} 23...
Nb6 {[%clk 0:00:40.2]} 24. Bb3 {[%clk 0:00:31.7]} 24... Na5 {[%clk 0:00:39.6]}
25. Rxg7+ {[%clk 0:00:26.1]} 25... Bxg7 {[%clk 0:00:38.2]} 26. Rg1 {[%clk
0:00:26.7]} 26... Kf8 {[%clk 0:00:15.7]} 27. Rxg7 {[%clk 0:00:25.6]} 27... Re6
{[%clk 0:00:15.2]} 28. Bxe6 {[%clk 0:00:22.9]} 28... Bxe6 {[%clk 0:00:16.1]} 29.
Rxh7 {[%clk 0:00:20.9]} 29... Ke8 {[%clk 0:00:16.6]} 30. Ne5 {[%clk 0:00:21.4]}
1-0

[Event "Early-Titled-Tuesday-Blitz-May-28-2024"]
[Site "Chess.com"]
[Date "2024.05.28"]
[Round "4"]
[White "Nechitaylo_Nikita"]
[Black "yobdc"]
[Result "0-1"]
[WhiteElo "2336"]
[BlackElo "2513"]
[TimeControl "180+1"]
[EndTime "8:39:01 PDT"]
[Termination "yobdc won on time"]

1. d4 {[%clk 0:03:00.9]} 1... Nf6 {[%clk 0:02:59.5]} 2. c4 {[%clk 0:03:01.3]}
2... g6 {[%clk 0:03:00.1]} 3. f3 {[%clk 0:03:01.4]} 3... Bg7 {[%clk 0:02:58.7]}
4. e4 {[%clk 0:03:01.5]} 4... d6 {[%clk 0:02:59.2]} 5. Nc3 {[%clk 0:03:01.9]}
5... O-O {[%clk 0:02:59.5]} 6. Nge2 {[%clk 0:03:01.5]} 6... c5 {[%clk
0:02:53.5]} 7. d5 {[%clk 0:03:00.8]} 7... e6 {[%clk 0:02:53.5]} 8. Ng3 {[%clk
0:03:00.9]} 8... Re8 {[%clk 0:02:38.3]} 9. Bd3 {[%clk 0:02:51.3]} 9... exd5
{[%clk 0:02:36]} 10. cxd5 {[%clk 0:02:50.6]} 10... Na6 {[%clk 0:02:31.1]} 11.
Bxa6 {[%clk 0:02:38]} 11... bxa6 {[%clk 0:02:30.6]} 12. O-O {[%clk 0:02:38.9]}
12... Rb8 {[%clk 0:02:29.9]} 13. Rb1 {[%clk 0:02:04.4]} 13... h5 {[%clk
0:01:59.7]} 14. Bg5 {[%clk 0:02:01.2]} 14... Qb6 {[%clk 0:01:51.3]} 15. Re1
{[%clk 0:01:46.6]} 15... Nh7 {[%clk 0:01:49.1]} 16. Bf4 {[%clk 0:01:24.1]} 16...
a5 {[%clk 0:01:03.2]} 17. Qa4 {[%clk 0:01:02.3]} 17... Ba6 {[%clk 0:01:01.6]}
18. Qc6 {[%clk 0:00:25]} 18... Rbd8 {[%clk 0:00:23.4]} 19. h4 {[%clk 0:00:04.5]}
19... Bf6 {[%clk 0:00:18.8]} 20. e5 {[%clk 0:00:01.4]} 20... dxe5 {[%clk
0:00:12.9]} 21. Qxb6 {[%clk 0:00:01]} 21... axb6 {[%clk 0:00:12.8]} 0-1

[Event "Early-Titled-Tuesday-Blitz-May-28-2024"]
[Site "Chess.com"]
[Date "2024.05.28"]
[Round "4"]
[White "NastyaHn"]
[Black "jens1102"]
[Result "0-1"]
[WhiteElo "2484"]
[BlackElo "2711"]
[TimeControl "180+1"]
[EndTime "8:39:05 PDT"]
[Termination "jens1102 won on time"]

1. Nc3 {[%clk 0:03:00.9]} 1... Nf6 {[%clk 0:02:58.7]} 2. e4 {[%clk 0:02:58.6]}
2... d5 {[%clk 0:02:57.7]} 3. e5 {[%clk 0:02:57.9]} 3... d4 {[%clk 0:02:56.7]}
4. exf6 {[%clk 0:02:57.5]} 4... dxc3 {[%clk 0:02:54.4]} 5. fxg7 {[%clk
0:02:57.1]} 5... cxd2+ {[%clk 0:02:48.7]} 6. Qxd2 {[%clk 0:02:57.1]} 6... Qxd2+
{[%clk 0:02:46.3]} 7. Bxd2 {[%clk 0:02:57.7]} 7... Bxg7 {[%clk 0:02:46.3]} 8.
O-O-O {[%clk 0:02:57.9]} 8... O-O {[%clk 0:02:46.5]} 9. Bc4 {[%clk 0:02:52.2]}
9... c6 {[%clk 0:02:43.3]} 10. Nf3 {[%clk 0:02:50.8]} 10... Bg4 {[%clk
0:02:40.6]} 11. Bb4 {[%clk 0:02:50.1]} 11... Re8 {[%clk 0:02:36.8]} 12. Rhe1
{[%clk 0:02:39.6]} 12... b5 {[%clk 0:02:34.1]} 13. Bd3 {[%clk 0:02:26.7]} 13...
e6 {[%clk 0:02:27.3]} 14. h3 {[%clk 0:02:14.6]} 14... Bh5 {[%clk 0:02:13.3]} 15.
c4 {[%clk 0:01:52.4]} 15... a5 {[%clk 0:02:10.6]} 16. Bd6 {[%clk 0:01:50.5]}
16... Bg6 {[%clk 0:02:07.5]} 17. Bxg6 {[%clk 0:01:27.4]} 17... hxg6 {[%clk
0:02:08.4]} 18. cxb5 {[%clk 0:01:26.6]} 18... cxb5 {[%clk 0:02:09.3]} 19. Be5
{[%clk 0:01:26.6]} 19... Nc6 {[%clk 0:02:06.9]} 20. Bxg7 {[%clk 0:01:25.2]}
20... Kxg7 {[%clk 0:02:07.8]} 21. Kb1 {[%clk 0:01:23.1]} 21... Rad8 {[%clk
0:02:01.4]} 22. a3 {[%clk 0:01:13.4]} 22... a4 {[%clk 0:01:57.9]} 23. Rc1 {[%clk
0:01:13.4]} 23... Na5 {[%clk 0:01:55.5]} 24. Rc5 {[%clk 0:01:13.4]} 24... Rb8
{[%clk 0:01:50.7]} 25. Rc7 {[%clk 0:01:07.6]} 25... Rb7 {[%clk 0:01:45.8]} 26.
Rec1 {[%clk 0:01:03.6]} 26... Rd8 {[%clk 0:01:44.1]} 27. Ng5 {[%clk 0:00:45.7]}
27... Rd7 {[%clk 0:01:35.6]} 28. Rxd7 {[%clk 0:00:22.9]} 28... Rxd7 {[%clk
0:01:30.7]} 29. Rc5 {[%clk 0:00:22.6]} 29... Nb3 {[%clk 0:01:23.6]} 30. Rc3
{[%clk 0:00:14.6]} 30... Rd1+ {[%clk 0:01:20.4]} 31. Kc2 {[%clk 0:00:14.4]}
31... Rd2+ {[%clk 0:01:20.2]} 32. Kb1 {[%clk 0:00:14.7]} 32... Rxf2 {[%clk
0:01:18.7]} 33. g4 {[%clk 0:00:11.1]} 33... Nd2+ {[%clk 0:01:14]} 34. Ka2 {[%clk
0:00:05.1]} 34... Nc4 {[%clk 0:01:13.9]} 35. Rf3 {[%clk 0:00:01.1]} 35... Rxb2+
{[%clk 0:01:08.8]} 36. Ka1 {[%clk 0:00:01.5]} 36... f5 {[%clk 0:01:04.1]} 37.
Nxe6+ {[%clk 0:00:01.2]} 37... Kf6 {[%clk 0:01:04.5]} 38. gxf5 {[%clk
0:00:01.7]} 38... Rb3 {[%clk 0:00:54]} 39. Rxb3 {[%clk 0:00:01]} 39... axb3
{[%clk 0:00:54.9]} 0-1